bitfinex/quotes_BTCUSD_20241208
["timestamp","ask_amount","ask_price","bid_price","bid_amount"]
[1733667436561,0.10491929,100270.0,100260.0,0.10097096]
[1733667436759,0.10491929,100270.0,100260.0,0.28050396]
[1733667437097,0.28443429,100270.0,100260.0,0.28050396]
[1733667437314,0.01301929,100270.0,100260.0,0.55400396]
[1733667438364,0.01101929,100270.0,100260.0,0.55400396]
[1733667439143,0.01101929,100270.0,100260.0,0.55700396]
[1733667439358,0.00801929,100270.0,100260.0,0.48010396]
[1733667439804,0.00901929,100270.0,100260.0,0.48310396]
[1733667440881,0.00901929,100270.0,100260.0,0.48010396]
[1733667441755,0.01001929,100270.0,100260.0,0.48410396]
[1733667447049,0.01001929,100270.0,100260.0,0.43750396]
[1733667451349,0.01001929,100270.0,100260.0,0.52678245]
[1733667454299,0.01001929,100270.0,100260.0,0.66081069]
[1733667455527,0.01001929,100270.0,100260.0,0.99060696]
[1733667459121,0.01001929,100270.0,100260.0,0.90147648]
[1733667459326,0.01001929,100270.0,100260.0,1.16959603]
[1733667460432,0.01001929,100270.0,100260.0,1.17704363]
[1733667467549,0.28603429,100270.0,100260.0,0.66131666]
[1733667467760,0.15211929,100270.0,100260.0,0.10797096]
[1733667467973,0.13711929,100270.0,100260.0,0.10797096]
[1733667468228,0.10651929,100270.0,100260.0,0.3778745]
[1733667468426,0.10651929,100270.0,100260.0,0.28750396]
[1733667468646,0.10551929,100270.0,100260.0,0.37287712]
[1733667468850,0.10551929,100270.0,100260.0,0.65693686]
[1733667469472,0.10551929,100270.0,100260.0,0.989782]
[1733667469873,0.10551929,100270.0,100260.0,0.65993686]
[1733667470065,0.08951929,100270.0,100260.0,0.98675875]
[1733667470312,0.09051929,100270.0,100260.0,0.98975875]
[1733667473012,0.09051929,100270.0,100260.0,1.1684573]
[1733667473169,0.09051929,100270.0,100260.0,1.16848897]
[1733667474943,0.00901929,100270.0,100260.0,1.00850003]
[1733667475139,0.0815,100300.0,100290.0,0.329479]
[1733667475426,0.0815,100300.0,100290.0,0.98240801]
[1733667475626,0.0815,100300.0,100290.0,0.65282186]
[1733667477127,0.0825,100300.0,100290.0,0.98736872]
[1733667477569,0.0825,100300.0,100290.0,0.85338071]
[1733667478193,0.001,100300.0,100290.0,0.85338071]
[1733667478388,0.001,100300.0,100290.0,0.85538071]
[1733667478603,0.001,100300.0,100290.0,0.85531436]
[1733667478770,0.001,100300.0,100290.0,0.5257675]
[1733667481101,0.001,100300.0,100290.0,0.43650851]
[1733667481296,0.001,100300.0,100290.0,0.5257675]
[1733667481523,0.001,100300.0,100290.0,1.16065384]
[1733667481831,0.001,100300.0,100290.0,1.51766751]
[1733667482458,0.001,100300.0,100290.0,1.54066751]
[1733667483020,0.001,100300.0,100290.0,1.45086077]
[1733667483310,0.001,100300.0,100290.0,1.27206812]
[1733667483735,0.0806,100300.0,100290.0,1.22206812]
[1733667484593,0.0806,100300.0,100290.0,0.75887945]
[1733667484812,0.0823322,100300.0,100290.0,0.66965726]
[1733667485245,0.0823322,100300.0,100290.0,1.22198406]
[1733667485650,0.0027322,100300.0,100290.0,0.99892857]
[1733667485988,0.0027322,100300.0,100290.0,0.66965725]
[1733667486065,0.0027322,100300.0,100290.0,0.53582396]
[1733667486506,0.0027322,100300.0,100290.0,0.66965725]
[1733667487141,0.0027322,100300.0,100290.0,0.53582396]
[1733667487351,0.0823322,100300.0,100290.0,0.53582396]
[1733667487977,0.0823322,100300.0,100290.0,0.44660177]
[1733667493654,0.2617932,100300.0,100290.0,0.43650851]
[1733667493855,0.3230932,100300.0,100290.0,0.43650851]
[1733667494083,0.3230932,100300.0,100290.0,0.10702951]
[1733667495027,0.3080932,100300.0,100290.0,0.007]
[1733667496083,0.3080932,100300.0,100290.0,0.005]
[1733667496516,0.48112271,100300.0,100290.0,0.005]
[1733667496718,0.274115,100270.0,100260.0,0.63987062]
[1733667496932,0.274115,100270.0,100260.0,0.73990013]
[1733667497340,0.274115,100270.0,100260.0,0.5615739]
[1733667498289,0.275115,100270.0,100260.0,0.5665739]
[1733667498881,0.275115,100270.0,100260.0,0.5685739]
[1733667499073,0.275115,100270.0,100260.0,0.10797096]
[1733667500592,0.0806,100270.0,100260.0,0.28750396]
[1733667500816,0.0956,100270.0,100260.0,0.28750396]
[1733667501871,0.0806,100270.0,100260.0,0.28750396]
[1733667502088,0.001,100270.0,100260.0,0.28750396]
[1733667502243,0.016,100270.0,100260.0,0.28750396]
[1733667506071,0.016,100270.0,100260.0,0.29732988]
[1733667507440,0.001,100270.0,100260.0,0.29732988]
[1733667510350,0.001,100270.0,100260.0,0.53659711]
[1733667510557,0.001,100270.0,100260.0,0.58339711]
[1733667510803,0.001,100270.0,100260.0,0.71725313]
[1733667511035,0.001,100270.0,100260.0,1.09638657]
[1733667511257,0.001,100270.0,100260.0,1.30991018]
[1733667511437,0.001,100270.0,100260.0,1.55585872]
[1733667511835,0.0825,100290.0,100280.0,0.329497]
[1733667512008,0.0842322,100300.0,100290.0,0.179479]
[1733667512200,0.0842322,100300.0,100290.0,0.4305055]
[1733667512412,0.0842322,100300.0,100290.0,0.42950851]
[1733667512838,0.0017322,100300.0,100290.0,0.42950851]
[1733667513852,0.0017322,100300.0,100290.0,0.51863333]
[1733667515117,0.0017322,100300.0,100290.0,0.42950851]
[1733667515327,0.0017322,100300.0,100290.0,0.43250851]
[1733667515523,0.0017322,100300.0,100290.0,0.43450851]
[1733667522023,0.0779322,100300.0,100290.0,0.25502951]
[1733667522205,0.3190932,100300.0,100290.0,0.28450851]
[1733667523820,0.3190932,100300.0,100290.0,0.10502951]
[1733667524800,0.3190932,100300.0,100290.0,0.005]
[1733667525024,0.3040932,100300.0,100290.0,0.005]
[1733667526067,0.0762,100280.0,100270.0,0.359007]
[1733667526277,0.0762,100280.0,100270.0,0.60903651]
[1733667526477,0.255697,100280.0,100270.0,0.10002951]
[1733667526677,0.317397,100280.0,100270.0,0.27954451]
[1733667528118,0.30155554,100280.0,100270.0,0.27954451]
[1733667528318,0.12205854,100280.0,100270.0,0.27954451]
[1733667528499,0.12305854,100280.0,100270.0,0.28754451]
[1733667528704,0.12305854,100280.0,100270.0,0.29154451]
[1733667528894,0.12205854,100280.0,100270.0,0.28354451]
[1733667529221,0.12205854,100280.0,100270.0,0.28754451]
[1733667529420,0.12205854,100280.0,100270.0,0.28354451]
[1733667529841,0.12205854,100280.0,100270.0,0.28554451]
[1733667532730,0.12205854,100280.0,100270.0,0.28641011]
[1733667533540,0.12378974,100280.0,100270.0,0.28641011]
[1733667536880,0.30328674,100280.0,100270.0,0.10689511]
[1733667538229,0.25658674,100280.0,100270.0,0.10689511]
[1733667538408,0.07708974,100280.0,100270.0,0.28641011]
[1733667540907,0.25658674,100280.0,100270.0,0.28641011]
[1733667541309,0.07708974,100280.0,100270.0,0.28641011]
[1733667546109,0.0017312,100280.0,100270.0,0.43641011]
[1733667546290,0.0017312,100280.0,100270.0,0.65962301]
[1733667546499,0.0017312,100280.0,100270.0,0.98915066]
[1733667547128,0.0017312,100280.0,100270.0,1.21230312]
[1733667547746,0.0017312,100280.0,100270.0,1.39083199]
[1733667550054,0.0017312,100280.0,100270.0,1.54053199]
[1733667550281,0.0937322,100300.0,100280.0,0.35897]
[1733667550523,0.0937322,100300.0,100290.0,0.10102649]
[1733667550752,0.0937322,100300.0,100290.0,0.27950851]
[1733667551417,0.0957322,100300.0,100290.0,0.27950851]
[1733667551979,0.0937322,100300.0,100290.0,0.27950851]
[1733667552409,0.0937322,100300.0,100290.0,0.18924067]
[1733667552596,0.2731932,100300.0,100290.0,0.10002951]
[1733667552866,0.2801932,100300.0,100290.0,0.10002951]
[1733667553087,0.1007322,100300.0,100290.0,0.27950851]
[1733667553267,0.0957322,100300.0,100290.0,0.27950851]
[1733667553685,0.0957322,100300.0,100290.0,0.28250851]
[1733667554323,0.0937322,100300.0,100290.0,0.28250851]
[1733667554701,0.0937322,100300.0,100290.0,0.28450851]
[1733667555997,0.2731932,100300.0,100290.0,0.28450851]
[1733667557912,0.0937322,100300.0,100290.0,0.28450851]
[1733667560730,0.0017322,100300.0,100290.0,0.43450851]
[1733667560930,0.0017322,100300.0,100290.0,0.65773861]
[1733667561175,0.0017322,100300.0,100290.0,1.03281175]
[1733667561594,0.0017322,100300.0,100290.0,1.21139583]
[1733667562228,0.0017322,100300.0,100290.0,1.03281175]
[1733667562672,0.0017322,100300.0,100290.0,0.98731175]
[1733667565525,0.0017322,100300.0,100290.0,1.07631715]
[1733667570464,0.0017322,100300.0,100290.0,0.74685917]
[1733667572224,0.0017322,100300.0,100290.0,0.613024]
[1733667572838,0.0017322,100300.0,100290.0,0.74685917]
[1733667574634,0.0017322,100300.0,100290.0,1.07609097]
[1733667575245,0.0017322,100300.0,100290.0,1.07597746]
[1733667576275,0.0017322,100300.0,100290.0,1.11587246]
[1733667577525,0.0017322,100300.0,100290.0,1.07597746]
[1733667577848,0.0017322,100300.0,100290.0,0.74676157]
[1733667578673,0.0017322,100300.0,100290.0,0.74176157]
[1733667579160,0.0783322,100300.0,100290.0,0.65257716]
[1733667579384,0.0783322,100300.0,100290.0,0.51880055]
[1733667580031,0.0783322,100300.0,100290.0,0.42950851]
[1733667580775,0.0933322,100300.0,100290.0,0.10002951]
[1733667580992,0.2577932,100300.0,100290.0,0.005]
[1733667581202,0.3074932,100300.0,100290.0,0.005]
[1733667582782,0.3574932,100300.0,100290.0,0.005]
[1733667583458,0.179479,100290.0,100280.0,0.0008655]
[1733667583659,0.305779,100290.0,100280.0,0.0008655]
[1733667586222,0.305779,100290.0,100280.0,0.10089501]
[1733667586223,0.1273,100290.0,100280.0,0.10089501]
[1733667586436,0.1423,100290.0,100280.0,0.28039201]
[1733667586620,0.0926,100290.0,100280.0,0.28039201]
[1733667586945,0.0926,100290.0,100280.0,0.10089501]
[1733667587368,0.272079,100290.0,100280.0,0.10089501]
[1733667590117,0.272079,100290.0,100280.0,0.0008655]
[1733667591310,0.257079,100290.0,100280.0,0.0008655]
[1733667602247,0.2588098,100290.0,100280.0,0.0008655]
[1733667603934,0.3074098,100290.0,100280.0,0.0008655]
[1733667609677,0.61846907,100290.0,100280.0,0.0008655]
[1733667609906,0.76846907,100290.0,100280.0,0.0008655]
[1733667610642,0.77848164,100290.0,100280.0,0.0008655]
[1733667610863,0.69045188,100290.0,100280.0,0.0008655]
[1733667611287,0.77989906,100290.0,100280.0,0.0008655]
[1733667611690,0.69045188,100290.0,100280.0,0.0008655]
[1733667611879,0.71011383,100290.0,100280.0,0.0008655]
[1733667612974,0.38708432,100290.0,100280.0,0.0008655]
[1733667613314,0.31742237,100290.0,100280.0,0.0008655]
[1733667614116,0.3074098,100290.0,100280.0,0.0008655]
[1733667614787,0.2588098,100290.0,100280.0,0.0008655]
[1733667631639,0.26352952,100290.0,100280.0,0.0008655]
[1733667633589,0.00745052,100290.0,100280.0,0.1803625]
[1733667633726,0.02245052,100290.0,100280.0,0.28039201]
[1733667634505,0.02245052,100290.0,100280.0,0.369806]
[1733667635637,0.02245052,100290.0,100280.0,0.65391132]
[1733667635910,0.02245052,100290.0,100280.0,1.16263543]
[1733667636418,0.02245052,100290.0,100280.0,0.83270629]
[1733667636620,0.02245052,100290.0,100280.0,1.16260513]
[1733667640713,0.02145052,100290.0,100280.0,1.16260513]
[1733667641151,0.02145052,100290.0,100280.0,1.16660513]
[1733667641431,0.02145052,100290.0,100280.0,0.98781016]
[1733667641636,0.02145052,100290.0,100280.0,0.98981016]
[1733667642262,0.02145052,100290.0,100280.0,0.90009153]
[1733667642828,0.02145052,100290.0,100280.0,0.98940562]
[1733667648126,0.02145052,100290.0,100280.0,1.16804682]
[1733667648127,0.00645052,100290.0,100280.0,1.16804682]
[1733667653615,0.00645052,100290.0,100280.0,0.43639201]
[1733667653803,0.00645052,100290.0,100280.0,0.83811549]
[1733667654393,0.02145052,100290.0,100280.0,0.83811549]
[1733667655031,0.02145052,100290.0,100280.0,1.1676489]
[1733667655360,0.02145052,100290.0,100280.0,1.39082862]
[1733667657561,0.02145052,100290.0,100280.0,1.30155674]
[1733667659502,0.00645052,100290.0,100280.0,1.45505674]
[1733667659702,0.0167322,100300.0,100280.0,1.4597208]
[1733667659891,0.0167322,100300.0,100290.0,0.69838644]
[1733667660128,0.0167322,100300.0,100290.0,0.92056925]
[1733667660926,0.0017322,100300.0,100290.0,1.0545002]
[1733667661371,0.0017322,100300.0,100290.0,1.38406146]
[1733667661759,0.0017322,100300.0,100290.0,1.29476779]
[1733667662309,0.0027322,100300.0,100290.0,1.29476779]
[1733667663124,0.0027322,100300.0,100290.0,1.38403687]
[1733667663728,0.0027322,100300.0,100290.0,1.29476779]
[1733667663948,0.0954322,100300.0,100290.0,1.38404147]
[1733667664196,0.0954322,100300.0,100290.0,1.16086175]
[1733667664378,0.0954322,100300.0,100290.0,0.9822744]
[1733667664577,0.0954322,100300.0,100290.0,0.51878219]
[1733667667251,0.10419176,100300.0,100290.0,0.51878219]
[1733667668045,0.10419176,100300.0,100290.0,0.98236245]
[1733667669334,0.10419176,100300.0,100290.0,0.56343946]
[1733667669515,0.10419176,100300.0,100290.0,1.11632623]
[1733667670528,0.10419176,100300.0,100290.0,1.12641003]
[1733667670736,0.10419176,100300.0,100290.0,1.12727543]
[1733667671248,0.10419176,100300.0,100290.0,0.99334448]
[1733667672509,0.10419176,100300.0,100290.0,0.98326068]
[1733667674499,0.10419176,100300.0,100290.0,1.1618537]
[1733667674917,0.10419176,100300.0,100290.0,0.98326068]
[1733667675353,0.10419176,100300.0,100290.0,1.1618537]
[1733667675519,0.10419176,100300.0,100290.0,0.9387719]
[1733667675719,0.10419176,100300.0,100290.0,1.16209016]
[1733667676688,0.10419176,100300.0,100290.0,0.98343555]
[1733667678614,0.10419176,100300.0,100290.0,1.16211916]
[1733667680443,0.10419176,100300.0,100290.0,1.2965547]
[1733667681677,0.09098108,100300.0,100290.0,1.2965547]
[1733667682350,0.09271228,100300.0,100290.0,1.2965547]
[1733667683248,0.09271228,100300.0,100290.0,1.52007137]
[1733667690043,0.09271228,100300.0,100290.0,1.43113159]
[1733667690790,0.02549076,100300.0,100290.0,1.52057249]
[1733667691019,0.02549076,100300.0,100290.0,1.29697665]
[1733667691260,0.02549076,100300.0,100290.0,1.29695249]
[1733667691477,0.02549076,100300.0,100290.0,0.98411243]
[1733667691693,0.02549076,100300.0,100290.0,1.25242232]
[1733667691922,0.02549076,100300.0,100290.0,0.98411243]
[1733667692141,0.02549076,100300.0,100290.0,1.02883074]
[1733667692570,0.01049076,100300.0,100290.0,1.02883074]
[1733667692946,0.01049076,100300.0,100290.0,1.15653074]
[1733667693129,0.0017312,100300.0,100290.0,1.15653074]
[1733667693526,0.01048097,100300.0,100290.0,1.22953074]
[1733667694737,0.01048097,100300.0,100290.0,1.291201]
[1733667696092,0.01048097,100300.0,100290.0,1.35866098]
[1733667696815,0.01048097,100300.0,100290.0,1.31399393]
[1733667697158,0.01048097,100300.0,100290.0,1.58215391]
[1733667699643,0.01048097,100300.0,100290.0,1.58238221]
[1733667701521,0.01048097,100300.0,100290.0,0.98398643]
[1733667701729,0.01048097,100300.0,100290.0,0.76044573]
[1733667702209,0.01048097,100300.0,100290.0,1.02873556]
[1733667702969,0.01048097,100300.0,100290.0,1.25233555]
[1733667704360,0.01048097,100300.0,100290.0,1.02873556]
[1733667706008,0.01048097,100300.0,100290.0,1.25242758]
[1733667706362,0.01048097,100300.0,100290.0,1.25245058]
[1733667706586,0.01048097,100300.0,100290.0,1.02873556]
[1733667707377,0.0909656,100310.0,100290.0,1.02873556]
[1733667707703,0.0759656,100310.0,100300.0,0.8069074]
[1733667707938,0.0759656,100310.0,100300.0,0.95066304]
[1733667708126,0.0759656,100310.0,100300.0,1.04015322]
[1733667708526,0.0779656,100310.0,100300.0,1.04015322]
[1733667708733,0.0779656,100310.0,100300.0,1.28099234]
[1733667708734,0.0819656,100310.0,100300.0,1.28099234]
[1733667709066,0.07854031,100310.0,100300.0,1.28099234]
[1733667709251,0.08254031,100310.0,100300.0,1.28099234]
[1733667709420,0.07854031,100310.0,100300.0,1.29801679]
[1733667709636,0.00344031,100310.0,100300.0,1.54381679]
[1733667709834,0.00144031,100310.0,100300.0,1.67618597]
[1733667710080,0.00144031,100310.0,100300.0,1.85608597]
[1733667710291,0.00344031,100310.0,100300.0,1.85608597]
[1733667710476,0.0008657,100320.0,100310.0,0.05]
[1733667710675,0.0008657,100320.0,100310.0,0.97219563]
[1733667710676,0.00092314,100320.0,100310.0,0.97219563]
[1733667710916,0.00092314,100320.0,100310.0,1.3891098]
[1733667711124,0.00092314,100320.0,100310.0,1.13338869]
[1733667711335,0.00092314,100320.0,100310.0,1.16305777]
[1733667712402,0.00192314,100320.0,100310.0,1.17105777]
[1733667713038,0.01692314,100320.0,100310.0,1.17105777]
[1733667713221,0.01692314,100320.0,100310.0,1.01406765]
[1733667713369,0.01692314,100320.0,100310.0,1.01806765]
[1733667713576,0.02427867,100320.0,100310.0,1.06806765]
[1733667713779,0.02427867,100320.0,100310.0,1.26806765]
[1733667713982,0.02427867,100320.0,100310.0,1.11105765]
[1733667714179,0.02427867,100320.0,100310.0,1.28962595]
[1733667714462,0.02427867,100320.0,100310.0,1.26662595]
[1733667714670,0.02427867,100320.0,100310.0,1.40056373]
[1733667715091,0.02427867,100320.0,100310.0,1.48986224]
[1733667715295,0.02427867,100320.0,100310.0,1.26659456]
[1733667715678,0.02427867,100320.0,100310.0,1.59620272]
[1733667717827,0.02427867,100320.0,100310.0,1.81937324]
[1733667718775,0.02427867,100320.0,100310.0,1.82954913]
[1733667718981,0.01692314,100320.0,100310.0,1.78466215]
[1733667719437,0.02424515,100320.0,100310.0,1.78466215]
[1733667720210,0.02424515,100320.0,100310.0,1.96315583]
[1733667720427,0.00924515,100320.0,100310.0,2.0673349]
[1733667720609,0.00924515,100320.0,100310.0,1.97807909]
[1733667721054,0.00192314,100320.0,100310.0,2.00774817]
[1733667721220,0.00192314,100320.0,100310.0,1.87386446]
[1733667721420,0.00192314,100320.0,100310.0,1.95646446]
[1733667721879,0.00192314,100320.0,100310.0,1.59920922]
[1733667723173,0.00192314,100320.0,100310.0,1.73304205]
[1733667723739,0.00192314,100320.0,100310.0,1.58190221]
[1733667724302,0.0754,100340.0,100310.0,1.49637422]
[1733667724484,0.09045745,100340.0,100330.0,0.179407]
[1733667724713,0.09045745,100340.0,100330.0,0.27943651]
[1733667725603,0.07545745,100340.0,100330.0,0.36864019]
[1733667725797,0.09045745,100340.0,100330.0,0.36864019]
[1733667726170,0.07545745,100340.0,100330.0,0.36864019]
[1733667726367,0.09045745,100340.0,100330.0,0.27943651]
[1733667726803,0.07545745,100340.0,100330.0,0.42943651]
[1733667726969,0.07545745,100340.0,100330.0,0.45932972]
[1733667727185,0.07545745,100340.0,100330.0,0.4889988]
[1733667727398,0.09045745,100340.0,100330.0,0.4889988]
[1733667727600,0.09045745,100340.0,100330.0,0.42943651]
[1733667727995,0.09045745,100340.0,100330.0,0.43343651]
[1733667729034,0.09045745,100340.0,100330.0,0.44243651]
[1733667729205,0.09145745,100340.0,100330.0,0.44243651]
[1733667729438,0.07645745,100340.0,100330.0,0.44243651]
[1733667731570,0.07645745,100340.0,100330.0,0.43843651]
[1733667731983,0.08417741,100340.0,100330.0,0.43843651]
[1733667732188,0.08317741,100340.0,100330.0,0.42943651]
[1733667732644,0.08317741,100340.0,100330.0,0.43925743]
[1733667733052,0.08417741,100340.0,100330.0,0.44825743]
[1733667733849,0.08417741,100340.0,100330.0,0.45225743]
[1733667739023,0.08504291,100340.0,100330.0,0.45225743]
[1733667740876,0.10004291,100340.0,100330.0,0.45225743]
[1733667741064,0.08504291,100340.0,100330.0,0.45225743]
[1733667746083,0.08504291,100340.0,100330.0,0.27285043]
[1733667750361,0.08504291,100340.0,100330.0,0.36212021]
[1733667750984,0.08504291,100340.0,100330.0,0.54152721]
[1733667752148,0.08454291,100340.0,100330.0,0.54152721]
[1733667753213,0.08454291,100340.0,100330.0,0.6753581]
[1733667753412,0.08454291,100340.0,100330.0,0.54152721]
[1733667754100,0.08454291,100340.0,100330.0,0.6753581]
[1733667754305,0.08454291,100340.0,100330.0,1.00528869]
[1733667755329,0.08454291,100340.0,100330.0,1.18372988]
[1733667756998,0.08454291,100340.0,100330.0,1.09531902]
[1733667757660,0.08454291,100340.0,100330.0,1.18474026]
[1733667758077,0.08454291,100340.0,100330.0,1.00589858]
[1733667758490,0.08454291,100340.0,100330.0,1.18474026]
[1733667759139,0.08454291,100340.0,100330.0,1.00589858]
[1733667760372,0.08454291,100340.0,100330.0,1.18474026]
[1733667761366,0.08454291,100340.0,100330.0,1.00589858]
[1733667761714,0.08454291,100340.0,100330.0,1.18476312]
[1733667764092,0.08454291,100340.0,100330.0,1.18649352]
[1733667766782,0.26393291,100340.0,100330.0,0.85708652]
[1733667767044,0.31203291,100340.0,100330.0,0.28301618]
[1733667767256,0.40162198,100340.0,100330.0,0.19359494]
[1733667767391,0.53600559,100340.0,100330.0,0.19359494]
[1733667767608,0.53600559,100340.0,100330.0,0.0147304]
[1733667768444,0.53600559,100340.0,100330.0,0.0057304]
[1733667768445,0.40062198,100340.0,100330.0,0.0057304]
[1733667768631,0.53900559,100340.0,100330.0,0.0017304]
[1733667769394,0.40462198,100340.0,100330.0,0.0017304]
[1733667769621,0.22523198,100340.0,100330.0,0.10175991]
[1733667769832,0.13764291,100340.0,100330.0,0.10175991]
[1733667770181,0.31703291,100340.0,100330.0,0.10175991]
[1733667770601,0.08954291,100340.0,100330.0,0.28116691]
[1733667770798,0.10454291,100340.0,100330.0,0.37058815]
[1733667771000,0.08954291,100340.0,100330.0,0.50469978]
[1733667771244,0.08954291,100340.0,100330.0,0.68368733]
[1733667771599,0.08954291,100340.0,100330.0,0.68342362]
[1733667771794,0.08754291,100340.0,100330.0,0.68342362]
[1733667772044,0.08354291,100340.0,100330.0,0.68342362]
[1733667772443,0.08354291,100340.0,100330.0,0.68442362]
[1733667773045,0.08354291,100340.0,100330.0,0.68342362]
[1733667773222,0.08354291,100340.0,100330.0,1.01342031]
[1733667773428,0.08354291,100340.0,100330.0,1.24189626]
[1733667773645,0.08354291,100340.0,100330.0,1.24389626]
[1733667774750,0.08354291,100340.0,100330.0,1.57391896]
[1733667777241,0.08354291,100340.0,100330.0,1.48452858]
[1733667777378,0.08354291,100340.0,100330.0,1.48461026]
[1733667777607,0.08354291,100340.0,100330.0,1.57401512]
[1733667778020,0.08354291,100340.0,100330.0,1.48461026]
[1733667778216,0.08354291,100340.0,100330.0,1.57401603]
[1733667778679,0.08354291,100340.0,100330.0,1.48461026]
[1733667781086,0.08354291,100340.0,100330.0,1.57361614]
[1733667784877,0.00864291,100340.0,100330.0,1.63421276]
[1733667785051,0.02364291,100340.0,100330.0,1.63421276]
[1733667785267,0.00864291,100340.0,100330.0,1.63421276]
[1733667787436,0.02364291,100340.0,100330.0,1.63421276]
[1733667789599,0.02364291,100340.0,100330.0,1.64165904]
[1733667789701,0.02364291,100340.0,100330.0,1.64165894]
[1733667790820,0.02364291,100340.0,100330.0,1.82012065]
[1733667791046,0.02364291,100340.0,100330.0,1.81267447]
[1733667791400,0.09994291,100340.0,100330.0,1.81267447]
[1733667792294,0.09994291,100340.0,100330.0,1.9466897]
[1733667792448,0.09994291,100340.0,100330.0,1.81264045]
[1733667792652,0.09222295,100340.0,100330.0,1.9466897]
[1733667792897,0.09994244,100340.0,100330.0,1.30378039]
[1733667793067,0.09994244,100340.0,100330.0,1.39312973]
[1733667793261,0.09994244,100340.0,100330.0,1.30378039]
[1733667793740,0.09994244,100340.0,100330.0,1.39312769]
[1733667794260,0.09994244,100340.0,100330.0,1.30378039]
[1733667795561,0.09994244,100340.0,100330.0,0.97382753]
[1733667796865,0.13464244,100340.0,100330.0,0.66147293]
[1733667797069,0.31403244,100340.0,100330.0,0.66147293]
[1733667797275,0.31403244,100340.0,100330.0,0.10836241]
[1733667797482,0.31403244,100340.0,100330.0,0.19770015]
[1733667797900,0.13464244,100340.0,100330.0,0.37710715]
[1733667798929,0.13464244,100340.0,100330.0,0.37712205]
[1733667799576,0.13464244,100340.0,100330.0,0.19771505]
[1733667799769,0.13464244,100340.0,100330.0,0.10836241]
[1733667799987,0.31403244,100340.0,100330.0,0.10836241]
[1733667804090,0.31403244,100340.0,100330.0,0.19771505]
[1733667804292,0.31403244,100340.0,100330.0,0.10836241]
[1733667804892,0.31403244,100340.0,100330.0,0.19771505]
[1733667805256,0.31403244,100340.0,100330.0,0.10836241]
[1733667805459,0.31403244,100340.0,100330.0,0.19771505]
[1733667806312,0.31403244,100340.0,100330.0,0.10836241]
[1733667807336,0.31403244,100340.0,100330.0,0.0083329]
[1733667808061,0.31403244,100340.0,100330.0,0.0063329]
[1733667808898,0.31403244,100340.0,100330.0,0.0013329]
[1733667809105,0.31343244,100340.0,100330.0,0.0013329]
[1733667809521,0.56346195,100340.0,100330.0,0.0013329]
[1733667809750,1.13932784,100340.0,100330.0,0.0013329]
[1733667809944,1.13934743,100340.0,100330.0,0.0013329]
[1733667810153,1.03953209,100340.0,100330.0,0.0013329]
[1733667810781,1.03953209,100340.0,100330.0,9e-07]
[1733667810986,0.86039851,100340.0,100330.0,9e-07]
[1733667811205,1.05119373,100340.0,100330.0,9e-07]
[1733667811430,0.380425,100320.0,100310.0,0.001731]
[1733667811684,0.480425,100320.0,100310.0,0.001731]
[1733667811908,0.57757592,100320.0,100310.0,0.001731]
[1733667812354,0.90656678,100320.0,100310.0,0.001731]
[1733667812774,0.72760543,100320.0,100310.0,0.001731]
[1733667812972,0.82742077,100320.0,100310.0,0.001731]
[1733667813462,0.83542077,100320.0,100310.0,0.002731]
[1733667814236,0.7499401,100320.0,100310.0,0.002731]
[1733667815754,0.65012476,100320.0,100310.0,0.002731]
[1733667816584,0.66033712,100320.0,100310.0,0.002731]
[1733667817446,0.51030761,100320.0,100310.0,0.002731]
[1733667817666,0.52996743,100320.0,100310.0,0.002731]
[1733667820846,0.57996743,100320.0,100310.0,0.002731]
[1733667821208,0.52996743,100320.0,100310.0,0.002731]
[1733667827264,0.57996743,100320.0,100310.0,0.002731]
[1733667828039,0.67978277,100320.0,100310.0,0.002731]
[1733667829506,0.82981228,100320.0,100310.0,0.002731]
[1733667831392,0.72999694,100320.0,100310.0,0.002731]
[1733667842168,0.67999694,100320.0,100310.0,0.002731]
[1733667844849,0.065,100310.0,100300.0,0.0008655]
[1733667845101,0.63317251,100310.0,100300.0,0.0008655]
[1733667845294,0.68638682,100310.0,100300.0,0.0008655]
[1733667845703,0.73620216,100310.0,100300.0,0.0008655]
[1733667846038,0.74020216,100310.0,100300.0,0.0008655]
[1733667846264,0.74220216,100310.0,100300.0,0.0008655]
[1733667846448,0.96528441,100310.0,100300.0,0.0008655]
[1733667846848,0.96528441,100310.0,100300.0,5e-07]
[1733667847050,1.14375021,100310.0,100300.0,5e-07]
[1733667847271,1.09375021,100310.0,100300.0,5e-07]
[1733667847911,0.91528441,100310.0,100300.0,5e-07]
[1733667848115,0.91349193,100310.0,100300.0,5e-07]
[1733667848536,0.91949193,100310.0,100300.0,5e-07]
[1733667848968,0.91549193,100310.0,100300.0,5e-07]
[1733667849167,0.92449193,100310.0,100300.0,5e-07]
[1733667849376,0.3494,100300.0,100290.0,9e-07]
[1733667849580,0.72870585,100300.0,100290.0,9e-07]
[1733667849791,0.73624087,100300.0,100290.0,9e-07]
[1733667850255,0.77555678,100300.0,100290.0,9e-07]
[1733667850482,0.90953064,100300.0,100290.0,9e-07]
[1733667850697,0.77555678,100300.0,100290.0,6.1e-07]
[1733667850873,0.78355678,100300.0,100290.0,6.1e-07]
[1733667851364,0.91753064,100300.0,100290.0,6.1e-07]
[1733667851891,0.92153064,100300.0,100290.0,6.1e-07]
[1733667852335,1.10017604,100300.0,100290.0,6.1e-07]
[1733667853321,1.32346581,100300.0,100290.0,6.1e-07]
[1733667854947,1.2341499,100300.0,100290.0,6.1e-07]
[1733667855310,1.10017604,100300.0,100290.0,6.1e-07]
[1733667855438,1.11025921,100300.0,100290.0,6.1e-07]
[1733667856760,1.11025921,100300.0,100290.0,0.00173181]
[1733667857412,1.13037733,100300.0,100290.0,0.00173181]
[1733667857661,1.26458344,100300.0,100290.0,0.00173181]
[1733667857890,1.26458344,100300.0,100290.0,8.1e-07]
[1733667858367,1.13037733,100300.0,100290.0,8.1e-07]
[1733667858604,1.26457111,100300.0,100290.0,8.1e-07]
[1733667859073,1.16905577,100300.0,100290.0,8.1e-07]
[1733667859312,0.96532626,100300.0,100290.0,8.1e-07]
[1733667859703,0.73668086,100300.0,100290.0,8.1e-07]
[1733667859946,0.60248708,100300.0,100290.0,8.1e-07]
[1733667860303,0.65248708,100300.0,100290.0,8.1e-07]
[1733667860401,0.42919731,100300.0,100290.0,8.1e-07]
[1733667861834,0.37919731,100300.0,100290.0,8.1e-07]
[1733667862037,0.20907919,100300.0,100290.0,8.1e-07]
[1733667862271,0.19899602,100300.0,100290.0,0.08080081]
[1733667862405,0.19899602,100300.0,100290.0,0.12860081]
[1733667864484,0.01953502,100300.0,100290.0,0.22863032]
[1733667864690,0.01953502,100300.0,100290.0,0.40810932]
[1733667865784,0.01153502,100300.0,100290.0,0.40810932]
[1733667865982,0.00753502,100300.0,100290.0,0.40910932]
[1733667867393,0.01153502,100300.0,100290.0,0.40910932]
[1733667867800,0.02253502,100300.0,100290.0,0.40910932]
[1733667868353,0.02340102,100300.0,100290.0,0.40910932]
[1733667868799,0.02340102,100300.0,100290.0,0.60910932]